[Event "Titled Tuesday Blitz January 10 Late 2023"]
[White "Kabilov, Amin"]
[Black "Rodrigues, Leonardo De Miranda"]
[WhiteFideId "14700859"]
[BlackFideId "2108658"]
[WhiteElo "2207"]
[BlackElo "2112"]
[Result "1-0"]
[Round "08"]
[TimeControl "180+2"]
[Date "2023.01.10"]
[WhiteClock "0:00:20"]
[BlackClock "0:00:11"]

1. e4 {[%clk 0:00:00]}  c6 {[%clk 0:00:00]} 2. d4 {[%clk 0:03:00]}  d5 {[%clk 0:02:58]} 3. Nc3 {[%clk 0:02:59]}  dxe4 {[%clk 0:02:58]} 4. Nxe4 {[%clk 0:03:00]}  Nd7 {[%clk 0:02:58]} 5. Ng5 {[%clk 0:03:00]}  Ngf6 {[%clk 0:02:58]} 6. Bd3 {[%clk 0:02:59]}  e6 {[%clk 0:02:58]} 7. N1f3 {[%clk 0:02:50]}  Bd6 {[%clk 0:02:56]} 8. Qe2 {[%clk 0:02:47]}  h6 {[%clk 0:02:54]} 9. Ne4 {[%clk 0:02:44]}  Nxe4 {[%clk 0:02:53]} 10. Qxe4 {[%clk 0:02:44]}  Nf6 {[%clk 0:02:52]} 11. Qe2 {[%clk 0:02:44]}  O-O {[%clk 0:02:51]} 12. O-O {[%clk 0:02:43]}  c5 {[%clk 0:02:45]} 13. c3 {[%clk 0:02:39]}  b6 {[%clk 0:02:45]} 14. Ne5 {[%clk 0:02:38]}  Bb7 {[%clk 0:02:45]} 15. Bf4 {[%clk 0:02:36]}  cxd4 {[%clk 0:02:43]} 16. cxd4 {[%clk 0:02:07]}  Rc8 {[%clk 0:02:16]} 17. Rac1 {[%clk 0:02:05]}  Qe7 {[%clk 0:02:13]} 18. Bb1 {[%clk 0:02:00]}  Rfd8 {[%clk 0:02:09]} 19. Rfd1 {[%clk 0:01:55]}  Ba8 {[%clk 0:01:55]} 20. f3 {[%clk 0:01:48]}  Qb7 {[%clk 0:01:49]} 21. Bd3 {[%clk 0:01:41]}  Qd5 {[%clk 0:01:34]} 22. Bc4 {[%clk 0:01:30]}  Qa5 {[%clk 0:01:29]} 23. Bd2 {[%clk 0:01:28]}  Bb4 {[%clk 0:01:21]} 24. Bxb4 {[%clk 0:01:00]}  Qxb4 {[%clk 0:01:10]} 25. Nxf7 {[%clk 0:00:57]}  Re8 {[%clk 0:01:11]} 26. Nxh6+ {[%clk 0:00:56]}  gxh6 {[%clk 0:00:43]} 27. Bxe6+ {[%clk 0:00:46]}  Kg7 {[%clk 0:00:41]} 28. Rxc8 {[%clk 0:00:45]}  Rxc8 {[%clk 0:00:37]} 29. Bxc8 {[%clk 0:00:44]}  Nd5 {[%clk 0:00:35]} 30. Qe5+ {[%clk 0:00:44]}  Kf8 {[%clk 0:00:33]} 31. Re1 {[%clk 0:00:44]}  Bc6 {[%clk 0:00:32]} 32. Qf5+ {[%clk 0:00:40]}  Kg7 {[%clk 0:00:29]} 33. Qe5+ {[%clk 0:00:36]}  Kf8 {[%clk 0:00:24]} 34. Be6 {[%clk 0:00:34]}  Ne7 {[%clk 0:00:23]} 35. Qf6+ {[%clk 0:00:34]}  Ke8 {[%clk 0:00:18]} 36. Bf7+ {[%clk 0:00:33]}  Kd8 {[%clk 0:00:17]} 37. Qe6 {[%clk 0:00:29]}  Bd5 {[%clk 0:00:15]} 38. Qxe7+ {[%clk 0:00:22]}  Qxe7 {[%clk 0:00:13]} 39. Rxe7 {[%clk 0:00:20]}  Kxe7 {[%clk 0:00:12]} 40. Bxd5 {[%clk 0:00:20]}  Kd6 {[%clk 0:00:11]} 41. Be4 {[%clk 0:00:20]} 1-0


[Site "https://www.chess.com"]

[Event "Titled Tuesday Blitz January 10 Late 2023"]
[White "De Souza, Cristiano Gomes"]
[Black "ritanovikova"]
[WhiteFideId "2151758"]
[WhiteElo "2018"]
[BlackElo "2115"]
[Result "1-0"]
[Round "08"]
[TimeControl "180+2"]
[Date "2023.01.10"]
[WhiteClock "0:01:43"]
[BlackClock "0:01:40"]

1. d4 {[%clk 0:00:00]}  Nf6 {[%clk 0:00:00]} 2. c4 {[%clk 0:03:00]}  e6 {[%clk 0:02:56]} 3. Nf3 {[%clk 0:03:00]}  d5 {[%clk 0:02:56]} 4. Nc3 {[%clk 0:03:00]}  c6 {[%clk 0:02:54]} 5. Bg5 {[%clk 0:02:59]}  Be7 {[%clk 0:02:53]} 6. Rc1 {[%clk 0:02:59]}  O-O {[%clk 0:02:53]} 7. e3 {[%clk 0:02:58]}  h6 {[%clk 0:02:53]} 8. Bh4 {[%clk 0:02:58]}  a6 {[%clk 0:02:53]} 9. c5 {[%clk 0:02:58]}  Ne4 {[%clk 0:02:50]} 10. Bxe7 {[%clk 0:02:57]}  Qxe7 {[%clk 0:02:43]} 11. Bd3 {[%clk 0:02:57]}  Ng5 {[%clk 0:02:44]} 12. Ne5 {[%clk 0:02:53]}  Nd7 {[%clk 0:02:40]} 13. Nxd7 {[%clk 0:02:51]}  Bxd7 {[%clk 0:02:37]} 14. Kf1 {[%clk 0:02:48]}  e5 {[%clk 0:02:37]} 15. h4 {[%clk 0:02:41]}  exd4 {[%clk 0:02:28]} 16. hxg5 {[%clk 0:02:40]}  dxc3 {[%clk 0:02:03]} 17. gxh6 {[%clk 0:02:33]}  cxb2 {[%clk 0:02:03]} 18. Rb1 {[%clk 0:02:24]}  Qf6 {[%clk 0:02:03]} 19. hxg7 {[%clk 0:02:09]}  Qxg7 {[%clk 0:01:54]} 20. Bh7+ {[%clk 0:02:07]}  Qxh7 {[%clk 0:01:51]} 21. Rxh7 {[%clk 0:01:49]}  Kxh7 {[%clk 0:01:43]} 22. Qh5+ {[%clk 0:01:47]}  Kg7 {[%clk 0:01:44]} 23. Qg5+ {[%clk 0:01:44]}  Kh7 {[%clk 0:01:40]} 24. Ke2 {[%clk 0:01:43]} 1-0


[Site "https://www.chess.com"]

[Event "Titled Tuesday Blitz January 10 Late 2023"]
[White "Jodorcovsky Werjivker, Paulo"]
[Black "ajedrez-facil"]
[WhiteFideId "3700305"]
[WhiteElo "2182"]
[BlackElo "2127"]
[Result "1-0"]
[Round "08"]
[TimeControl "180+2"]
[Date "2023.01.10"]
[WhiteClock "0:00:18"]
[BlackClock "0:00:24"]

1. e4 {[%clk 0:00:00]}  c5 {[%clk 0:00:00]} 2. Nc3 {[%clk 0:02:57]}  a6 {[%clk 0:02:56]} 3. g3 {[%clk 0:02:57]}  b5 {[%clk 0:02:53]} 4. Bg2 {[%clk 0:02:56]}  Bb7 {[%clk 0:02:53]} 5. Nh3 {[%clk 0:02:57]}  e6 {[%clk 0:02:54]} 6. O-O {[%clk 0:02:57]}  Nf6 {[%clk 0:02:54]} 7. d3 {[%clk 0:02:56]}  d5 {[%clk 0:02:54]} 8. exd5 {[%clk 0:02:56]}  Nxd5 {[%clk 0:02:53]} 9. Nxd5 {[%clk 0:02:51]}  Bxd5 {[%clk 0:02:54]} 10. f4 {[%clk 0:02:46]}  Be7 {[%clk 0:02:55]} 11. f5 {[%clk 0:02:34]}  Bxg2 {[%clk 0:02:52]} 12. Kxg2 {[%clk 0:02:33]}  exf5 {[%clk 0:02:46]} 13. Rxf5 {[%clk 0:02:34]}  O-O {[%clk 0:02:45]} 14. Be3 {[%clk 0:02:33]}  Nd7 {[%clk 0:02:45]} 15. Qf3 {[%clk 0:02:31]}  Rc8 {[%clk 0:02:40]} 16. Rf1 {[%clk 0:02:30]}  f6 {[%clk 0:02:32]} 17. Qd5+ {[%clk 0:02:28]}  Kh8 {[%clk 0:02:19]} 18. Nf4 {[%clk 0:02:19]}  Ne5 {[%clk 0:02:17]} 19. Qxd8 {[%clk 0:02:19]}  Rfxd8 {[%clk 0:01:59]} 20. Ne6 {[%clk 0:02:16]}  Rd7 {[%clk 0:02:00]} 21. h3 {[%clk 0:02:13]}  Rc6 {[%clk 0:01:51]} 22. Ng5 {[%clk 0:02:04]}  g6 {[%clk 0:01:37]} 23. Rxe5 {[%clk 0:01:25]}  fxe5 {[%clk 0:01:31]} 24. Nf7+ {[%clk 0:01:22]}  Kg7 {[%clk 0:01:28]} 25. Nxe5 {[%clk 0:01:23]}  Rdc7 {[%clk 0:01:26]} 26. Rf7+ {[%clk 0:01:24]}  Kg8 {[%clk 0:01:27]} 27. Bh6 {[%clk 0:01:22]}  Bd6 {[%clk 0:01:24]} 28. Rxc7 {[%clk 0:01:19]}  Rxc7 {[%clk 0:00:20]} 29. Ng4 {[%clk 0:00:23]}  Rf7 {[%clk 0:00:18]} 30. Bg5 {[%clk 0:00:23]}  Be7 {[%clk 0:00:17]} 31. Nh6+ {[%clk 0:00:22]}  Kf8 {[%clk 0:00:17]} 32. Nxf7 {[%clk 0:00:22]}  Kxf7 {[%clk 0:00:17]} 33. Bxe7 {[%clk 0:00:22]}  Kxe7 {[%clk 0:00:18]} 34. Kf3 {[%clk 0:00:23]}  Kf6 {[%clk 0:00:19]} 35. Kf4 {[%clk 0:00:23]}  Ke6 {[%clk 0:00:19]} 36. h4 {[%clk 0:00:24]}  h6 {[%clk 0:00:20]} 37. g4 {[%clk 0:00:24]}  a5 {[%clk 0:00:21]} 38. c3 {[%clk 0:00:24]}  a4 {[%clk 0:00:21]} 39. Ke4 {[%clk 0:00:22]}  g5 {[%clk 0:00:21]} 40. hxg5 {[%clk 0:00:21]}  hxg5 {[%clk 0:00:21]} 41. d4 {[%clk 0:00:20]}  cxd4 {[%clk 0:00:22]} 42. cxd4 {[%clk 0:00:20]}  b4 {[%clk 0:00:20]} 43. d5+ {[%clk 0:00:21]}  Kd6 {[%clk 0:00:19]} 44. Kd4 {[%clk 0:00:21]}  a3 {[%clk 0:00:20]} 45. bxa3 {[%clk 0:00:22]}  bxa3 {[%clk 0:00:20]} 46. Ke4 {[%clk 0:00:21]}  Kc5 {[%clk 0:00:21]} 47. Ke5 {[%clk 0:00:21]}  Kc4 {[%clk 0:00:20]} 48. d6 {[%clk 0:00:21]}  Kc3 {[%clk 0:00:21]} 49. d7 {[%clk 0:00:22]}  Kb2 {[%clk 0:00:22]} 50. d8=Q {[%clk 0:00:22]}  Kxa2 {[%clk 0:00:23]} 51. Qd4 {[%clk 0:00:22]}  Kb1 {[%clk 0:00:24]} 52. Qb4+ {[%clk 0:00:20]}  Ka2 {[%clk 0:00:23]} 53. Kd4 {[%clk 0:00:21]}  Ka1 {[%clk 0:00:23]} 54. Kc3 {[%clk 0:00:21]}  a2 {[%clk 0:00:24]} 55. Qb2# {[%clk 0:00:18]} 1-0


[Site "https://www.chess.com"]

[Event "Titled Tuesday Blitz January 10 Late 2023"]
[White "Thomas, Anysia"]
[Black "Ali, Kairi G."]
[WhiteFideId "670472"]
[BlackFideId "9206655"]
[WhiteElo "2147"]
[BlackElo "1802"]
[Result "0-1"]
[Round "08"]
[TimeControl "180+2"]
[Date "2023.01.10"]
[WhiteClock "0:00:02"]
[BlackClock "0:00:49"]

1. d4 {[%clk 0:00:00]}  Nf6 {[%clk 0:00:00]} 2. c4 {[%clk 0:03:00]}  e6 {[%clk 0:02:58]} 3. Nf3 {[%clk 0:03:01]}  Bb4+ {[%clk 0:02:56]} 4. Nbd2 {[%clk 0:03:01]}  d5 {[%clk 0:02:53]} 5. Qa4+ {[%clk 0:03:00]}  Nc6 {[%clk 0:02:53]} 6. a3 {[%clk 0:02:56]}  Be7 {[%clk 0:02:53]} 7. e3 {[%clk 0:02:55]}  O-O {[%clk 0:02:51]} 8. Qc2 {[%clk 0:02:54]}  Bd7 {[%clk 0:02:51]} 9. Bd3 {[%clk 0:02:54]}  a6 {[%clk 0:02:38]} 10. O-O {[%clk 0:02:54]}  h6 {[%clk 0:02:27]} 11. b4 {[%clk 0:02:47]}  dxc4 {[%clk 0:02:26]} 12. Nxc4 {[%clk 0:02:43]}  b5 {[%clk 0:02:24]} 13. Nce5 {[%clk 0:02:42]}  Nxe5 {[%clk 0:02:24]} 14. Nxe5 {[%clk 0:02:42]}  a5 {[%clk 0:02:23]} 15. Bd2 {[%clk 0:02:43]}  axb4 {[%clk 0:02:15]} 16. axb4 {[%clk 0:02:36]}  Rxa1 {[%clk 0:02:12]} 17. Rxa1 {[%clk 0:02:36]}  Nd5 {[%clk 0:02:10]} 18. Ra7 {[%clk 0:02:37]}  Be8 {[%clk 0:02:08]} 19. Qb3 {[%clk 0:02:13]}  Qd6 {[%clk 0:01:54]} 20. e4 {[%clk 0:01:54]}  Nb6 {[%clk 0:01:51]} 21. Qc3 {[%clk 0:00:45]}  Na4 {[%clk 0:01:35]} 22. Qxc7 {[%clk 0:00:36]}  Qxd4 {[%clk 0:01:29]} 23. Qxe7 {[%clk 0:00:34]}  Qxe5 {[%clk 0:01:24]} 24. h3 {[%clk 0:00:20]}  Qd4 {[%clk 0:01:24]} 25. Ra8 {[%clk 0:00:18]}  Qxd3 {[%clk 0:01:15]} 26. Bf4 {[%clk 0:00:09]}  Qd7 {[%clk 0:01:04]} 27. Qh4 {[%clk 0:00:07]}  f6 {[%clk 0:01:00]} 28. Be3 {[%clk 0:00:06]}  Bf7 {[%clk 0:00:53]} 29. Ra7 {[%clk 0:00:05]}  Qd1+ {[%clk 0:00:51]} 30. Kh2 {[%clk 0:00:04]}  Nc3 {[%clk 0:00:50]} 31. Qg3 {[%clk 0:00:04]}  Ne2 {[%clk 0:00:49]} 32. Qg4 {[%clk 0:00:02]}  Qg1# {[%clk 0:00:49]} 0-1


[Site "https://www.chess.com"]

[Event "Titled Tuesday Blitz January 10 Late 2023"]
[White "Wang, Alexander J"]
[Black "Dias, Joao Batista"]
[WhiteFideId "30955270"]
[BlackFideId "2108240"]
[WhiteElo "1815"]
[BlackElo "1796"]
[Result "0-1"]
[Round "08"]
[TimeControl "180+2"]
[Date "2023.01.10"]
[WhiteClock "0:00:30"]
[BlackClock "0:01:33"]

1. e4 {[%clk 0:00:00]}  e5 {[%clk 0:00:00]} 2. Nf3 {[%clk 0:03:00]}  Nc6 {[%clk 0:02:59]} 3. Bb5 {[%clk 0:02:58]}  Nf6 {[%clk 0:02:59]} 4. O-O {[%clk 0:02:56]}  d6 {[%clk 0:02:56]} 5. d4 {[%clk 0:02:47]}  exd4 {[%clk 0:02:56]} 6. Nxd4 {[%clk 0:02:45]}  Bd7 {[%clk 0:02:56]} 7. Bxc6 {[%clk 0:02:46]}  bxc6 {[%clk 0:02:56]} 8. Qf3 {[%clk 0:02:45]}  c5 {[%clk 0:02:55]} 9. Nf5 {[%clk 0:02:40]}  g6 {[%clk 0:02:55]} 10. Ne3 {[%clk 0:02:38]}  Bg7 {[%clk 0:02:54]} 11. Nd5 {[%clk 0:02:30]}  Nxd5 {[%clk 0:02:53]} 12. exd5 {[%clk 0:02:22]}  O-O {[%clk 0:02:50]} 13. c3 {[%clk 0:02:23]}  Rb8 {[%clk 0:02:49]} 14. b3 {[%clk 0:02:08]}  Re8 {[%clk 0:02:48]} 15. Bb2 {[%clk 0:01:52]}  Qg5 {[%clk 0:02:43]} 16. Na3 {[%clk 0:01:48]}  Qd2 {[%clk 0:02:40]} 17. Nc4 {[%clk 0:01:40]}  Qg5 {[%clk 0:02:33]} 18. Rfe1 {[%clk 0:01:34]}  Bb5 {[%clk 0:02:24]} 19. Ne3 {[%clk 0:01:29]}  Re7 {[%clk 0:02:23]} 20. Ng4 {[%clk 0:01:07]}  Rbe8 {[%clk 0:02:09]} 21. Rxe7 {[%clk 0:00:44]}  Rxe7 {[%clk 0:02:02]} 22. Ne3 {[%clk 0:00:42]}  h5 {[%clk 0:02:02]} 23. a4 {[%clk 0:00:38]}  Bd7 {[%clk 0:01:56]} 24. h3 {[%clk 0:00:37]}  a6 {[%clk 0:01:54]} 25. Re1 {[%clk 0:00:36]}  Re8 {[%clk 0:01:43]} 26. Nc2 {[%clk 0:00:33]}  Rxe1+ {[%clk 0:01:38]} 27. Nxe1 {[%clk 0:00:30]}  Qd2 {[%clk 0:01:35]} 28. Nd3 {[%clk 0:00:31]}  Bxc3 {[%clk 0:01:35]} 29. Bxc3 {[%clk 0:00:30]}  Qxc3 {[%clk 0:01:33]} 30. Qe4 {[%clk 0:00:30]}  Qxb3 {[%clk 0:01:33]} 0-1


[Site "https://www.chess.com"]

[Event "Titled Tuesday Blitz January 10 Late 2023"]
[White "Indjic, Aleksandar"]
[Black "Paravyan, David"]
[WhiteFideId "911925"]
[BlackFideId "4194985"]
[WhiteElo "2618"]
[BlackElo "2601"]
[Result "0-1"]
[Round "09"]
[TimeControl "180+2"]
[Date "2023.01.10"]
[WhiteClock "0:00:10"]
[BlackClock "0:00:11"]

1. d4 {[%clk 0:00:00]}  Nf6 {[%clk 0:00:00]} 2. Nf3 {[%clk 0:03:00]}  g6 {[%clk 0:03:00]} 3. Bg5 {[%clk 0:03:01]}  Bg7 {[%clk 0:03:00]} 4. Nbd2 {[%clk 0:03:01]}  h6 {[%clk 0:03:00]} 5. Bh4 {[%clk 0:03:02]}  c5 {[%clk 0:03:00]} 6. Bxf6 {[%clk 0:03:01]}  Bxf6 {[%clk 0:03:00]} 7. Ne4 {[%clk 0:03:00]}  Qb6 {[%clk 0:03:01]} 8. Nxf6+ {[%clk 0:03:01]}  exf6 {[%clk 0:03:01]} 9. Rb1 {[%clk 0:03:00]}  d5 {[%clk 0:03:02]} 10. dxc5 {[%clk 0:02:57]}  Qxc5 {[%clk 0:03:01]} 11. c3 {[%clk 0:02:57]}  Nc6 {[%clk 0:03:02]} 12. e3 {[%clk 0:02:57]}  Kf8 {[%clk 0:03:00]} 13. Be2 {[%clk 0:02:58]}  Kg7 {[%clk 0:03:00]} 14. O-O {[%clk 0:02:55]}  Be6 {[%clk 0:03:01]} 15. Qd2 {[%clk 0:02:55]}  Rhd8 {[%clk 0:03:00]} 16. Rfd1 {[%clk 0:02:55]}  Rac8 {[%clk 0:02:57]} 17. Rbc1 {[%clk 0:02:55]}  Qb6 {[%clk 0:02:56]} 18. b3 {[%clk 0:02:55]}  a6 {[%clk 0:02:53]} 19. h3 {[%clk 0:02:54]}  Rc7 {[%clk 0:02:52]} 20. Bd3 {[%clk 0:02:54]}  Rdc8 {[%clk 0:02:45]} 21. Rc2 {[%clk 0:02:48]}  Qa5 {[%clk 0:02:44]} 22. Rdc1 {[%clk 0:02:48]}  Qa3 {[%clk 0:02:38]} 23. Nd4 {[%clk 0:02:45]}  Bd7 {[%clk 0:02:38]} 24. Ne2 {[%clk 0:02:26]}  Ne5 {[%clk 0:02:38]} 25. Nd4 {[%clk 0:02:24]}  h5 {[%clk 0:02:34]} 26. h4 {[%clk 0:02:22]}  Bg4 {[%clk 0:02:27]} 27. f3 {[%clk 0:01:59]}  Bd7 {[%clk 0:02:24]} 28. Kf2 {[%clk 0:01:58]}  Nc6 {[%clk 0:02:23]} 29. Ne2 {[%clk 0:01:55]}  Be6 {[%clk 0:02:15]} 30. Rd1 {[%clk 0:01:47]}  Ne5 {[%clk 0:02:12]} 31. Nd4 {[%clk 0:01:22]}  Bd7 {[%clk 0:02:06]} 32. Rdc1 {[%clk 0:01:22]}  Qa5 {[%clk 0:02:05]} 33. a4 {[%clk 0:01:08]}  Qb6 {[%clk 0:01:56]} 34. b4 {[%clk 0:01:01]}  Bxa4 {[%clk 0:01:54]} 35. Ra2 {[%clk 0:01:00]}  Bb5 {[%clk 0:01:54]} 36. Bxb5 {[%clk 0:00:57]}  axb5 {[%clk 0:01:39]} 37. Ne2 {[%clk 0:00:55]}  Nc6 {[%clk 0:01:40]} 38. Re1 {[%clk 0:00:51]}  Rd8 {[%clk 0:01:32]} 39. Nf4 {[%clk 0:00:46]}  Rcd7 {[%clk 0:01:23]} 40. Kg3 {[%clk 0:00:46]}  Qc7 {[%clk 0:01:20]} 41. Kf2 {[%clk 0:00:42]}  Kg8 {[%clk 0:01:20]} 42. Rea1 {[%clk 0:00:41]}  d4 {[%clk 0:00:59]} 43. Ra8 {[%clk 0:00:38]}  d3 {[%clk 0:00:51]} 44. e4 {[%clk 0:00:21]}  Ne7 {[%clk 0:00:41]} 45. Rxd8+ {[%clk 0:00:20]}  Qxd8 {[%clk 0:00:28]} 46. Rd1 {[%clk 0:00:18]}  f5 {[%clk 0:00:25]} 47. Qe3 {[%clk 0:00:18]}  fxe4 {[%clk 0:00:21]} 48. fxe4 {[%clk 0:00:18]}  Nc6 {[%clk 0:00:20]} 49. Kg3 {[%clk 0:00:19]}  Ne5 {[%clk 0:00:19]} 50. Nd5 {[%clk 0:00:12]}  Rxd5 {[%clk 0:00:17]} 51. exd5 {[%clk 0:00:12]}  Qxd5 {[%clk 0:00:08]} 52. Qf4 {[%clk 0:00:13]}  Kg7 {[%clk 0:00:09]} 53. Qd4 {[%clk 0:00:13]}  Qe6 {[%clk 0:00:05]} 54. Rxd3 {[%clk 0:00:13]}  f6 {[%clk 0:00:02]} 55. Re3 {[%clk 0:00:13]}  Qf5 {[%clk 0:00:03]} 56. Qf4 {[%clk 0:00:13]}  Qb1 {[%clk 0:00:03]} 57. Rxe5 {[%clk 0:00:12]}  fxe5 {[%clk 0:00:02]} 58. Qxe5+ {[%clk 0:00:11]}  Kh7 {[%clk 0:00:03]} 59. Qe7+ {[%clk 0:00:12]}  Kg8 {[%clk 0:00:04]} 60. Qe8+ {[%clk 0:00:11]}  Kh7 {[%clk 0:00:03]} 61. Qd7+ {[%clk 0:00:11]}  Kh6 {[%clk 0:00:03]} 62. Qxb7 {[%clk 0:00:09]}  Qe1+ {[%clk 0:00:03]} 63. Kh2 {[%clk 0:00:08]}  Qxh4+ {[%clk 0:00:03]} 64. Kg1 {[%clk 0:00:03]}  Qe1+ {[%clk 0:00:04]} 65. Kh2 {[%clk 0:00:03]}  Qe5+ {[%clk 0:00:04]} 66. Kg1 {[%clk 0:00:04]}  Kg5 {[%clk 0:00:05]} 67. Qf3 {[%clk 0:00:04]}  h4 {[%clk 0:00:05]} 68. Kf2 {[%clk 0:00:03]}  Qf4 {[%clk 0:00:05]} 69. c4 {[%clk 0:00:03]}  Qxc4 {[%clk 0:00:03]} 70. Qe3+ {[%clk 0:00:03]}  Qf4+ {[%clk 0:00:03]} 71. Ke2 {[%clk 0:00:03]}  Qxe3+ {[%clk 0:00:03]} 72. Kxe3 {[%clk 0:00:03]}  Kg4 {[%clk 0:00:04]} 73. Kf2 {[%clk 0:00:04]}  Kf4 {[%clk 0:00:04]} 74. Ke2 {[%clk 0:00:04]}  Kg3 {[%clk 0:00:05]} 75. Kf1 {[%clk 0:00:04]}  g5 {[%clk 0:00:04]} 76. Kg1 {[%clk 0:00:05]}  g4 {[%clk 0:00:05]} 77. Kf1 {[%clk 0:00:05]}  Kf4 {[%clk 0:00:06]} 78. Kf2 {[%clk 0:00:06]}  Ke4 {[%clk 0:00:05]} 79. Ke2 {[%clk 0:00:05]}  h3 {[%clk 0:00:06]} 80. gxh3 {[%clk 0:00:05]}  gxh3 {[%clk 0:00:06]} 81. Kf2 {[%clk 0:00:05]}  Kd4 {[%clk 0:00:07]} 82. Kg3 {[%clk 0:00:06]}  Kc4 {[%clk 0:00:08]} 83. Kxh3 {[%clk 0:00:07]}  Kxb4 {[%clk 0:00:08]} 84. Kg3 {[%clk 0:00:08]}  Kc3 {[%clk 0:00:09]} 85. Kf2 {[%clk 0:00:08]}  b4 {[%clk 0:00:09]} 86. Ke1 {[%clk 0:00:09]}  Kc2 {[%clk 0:00:10]} 87. Ke2 {[%clk 0:00:10]}  b3 {[%clk 0:00:11]} 0-1


[Site "https://www.chess.com"]

[Event "Titled Tuesday Blitz January 10 Late 2023"]
[White "Nakamura, Hikaru"]
[Black "Jobava, Baadur"]
[WhiteFideId "2016192"]
[BlackFideId "13601520"]
[WhiteElo "2775"]
[BlackElo "2578"]
[Result "1-0"]
[Round "09"]
[TimeControl "180+2"]
[Date "2023.01.10"]
[WhiteClock "0:00:21"]
[BlackClock "0:00:02"]

1. d4 {[%clk 0:00:00]}  Nf6 {[%clk 0:00:00]} 2. Bg5 {[%clk 0:02:59]}  e6 {[%clk 0:02:57]} 3. e4 {[%clk 0:02:59]}  h6 {[%clk 0:02:55]} 4. Bxf6 {[%clk 0:02:56]}  Qxf6 {[%clk 0:02:55]} 5. Nc3 {[%clk 0:02:56]}  Bb4 {[%clk 0:02:55]} 6. Qd2 {[%clk 0:02:56]}  d6 {[%clk 0:02:52]} 7. Nge2 {[%clk 0:02:51]}  e5 {[%clk 0:02:46]} 8. O-O-O {[%clk 0:02:48]}  O-O {[%clk 0:02:38]} 9. f3 {[%clk 0:02:43]}  Nc6 {[%clk 0:02:35]} 10. a3 {[%clk 0:02:34]}  Bxc3 {[%clk 0:02:28]} 11. Qxc3 {[%clk 0:02:26]}  exd4 {[%clk 0:02:25]} 12. Nxd4 {[%clk 0:02:25]}  Nxd4 {[%clk 0:02:16]} 13. Rxd4 {[%clk 0:02:26]}  Be6 {[%clk 0:02:11]} 14. Qd2 {[%clk 0:02:26]}  Rad8 {[%clk 0:02:10]} 15. Be2 {[%clk 0:02:20]}  Qg5 {[%clk 0:01:53]} 16. g3 {[%clk 0:02:03]}  Qxd2+ {[%clk 0:01:53]} 17. Rxd2 {[%clk 0:01:45]}  f5 {[%clk 0:01:51]} 18. exf5 {[%clk 0:01:44]}  Rxf5 {[%clk 0:01:33]} 19. f4 {[%clk 0:01:41]}  Rf6 {[%clk 0:01:32]} 20. Bf3 {[%clk 0:01:42]}  b6 {[%clk 0:01:23]} 21. Re1 {[%clk 0:01:32]}  Kf8 {[%clk 0:01:22]} 22. Rde2 {[%clk 0:01:32]}  Bd7 {[%clk 0:01:14]} 23. Bh5 {[%clk 0:01:27]}  g6 {[%clk 0:01:07]} 24. Bf3 {[%clk 0:01:18]}  Re8 {[%clk 0:01:06]} 25. Rxe8+ {[%clk 0:01:19]}  Bxe8 {[%clk 0:00:52]} 26. Re3 {[%clk 0:01:16]}  g5 {[%clk 0:00:52]} 27. fxg5 {[%clk 0:01:16]}  hxg5 {[%clk 0:00:49]} 28. Bd5 {[%clk 0:01:16]}  Rf1+ {[%clk 0:00:50]} 29. Kd2 {[%clk 0:01:07]}  Rf2+ {[%clk 0:00:35]} 30. Re2 {[%clk 0:01:07]}  Rxe2+ {[%clk 0:00:36]} 31. Kxe2 {[%clk 0:01:07]}  Kg7 {[%clk 0:00:36]} 32. h4 {[%clk 0:01:07]}  Kf6 {[%clk 0:00:28]} 33. Ke3 {[%clk 0:01:07]}  Bg6 {[%clk 0:00:25]} 34. c3 {[%clk 0:01:06]}  Be8 {[%clk 0:00:25]} 35. Bf3 {[%clk 0:01:04]}  gxh4 {[%clk 0:00:24]} 36. gxh4 {[%clk 0:01:04]}  Kf5 {[%clk 0:00:17]} 37. Kd4 {[%clk 0:01:04]}  Bf7 {[%clk 0:00:16]} 38. h5 {[%clk 0:01:01]}  c5+ {[%clk 0:00:16]} 39. Ke3 {[%clk 0:01:02]}  Kg5 {[%clk 0:00:15]} 40. Ke4 {[%clk 0:01:02]}  Kf6 {[%clk 0:00:12]} 41. Kf4 {[%clk 0:01:03]}  Be8 {[%clk 0:00:08]} 42. h6 {[%clk 0:01:00]}  Bd7 {[%clk 0:00:03]} 43. Be4 {[%clk 0:00:59]}  Be6 {[%clk 0:00:01]} 44. Bc2 {[%clk 0:00:55]}  Bf7 {[%clk 0:00:01]} 45. h7 {[%clk 0:00:54]}  Kg7 {[%clk 0:00:01]} 46. Kg5 {[%clk 0:00:45]}  d5 {[%clk 0:00:01]} 47. Bd3 {[%clk 0:00:46]}  Be6 {[%clk 0:00:01]} 48. Kf4 {[%clk 0:00:40]}  Bh3 {[%clk 0:00:01]} 49. Ke5 {[%clk 0:00:40]}  Bg2 {[%clk 0:00:01]} 50. Bf5 {[%clk 0:00:40]}  Bf3 {[%clk 0:00:02]} 51. Bc2 {[%clk 0:00:38]}  Bg2 {[%clk 0:00:02]} 52. Bb3 {[%clk 0:00:28]}  Kxh7 {[%clk 0:00:02]} 53. Bxd5 {[%clk 0:00:29]}  Bf1 {[%clk 0:00:02]} 54. Kd6 {[%clk 0:00:29]}  Kg6 {[%clk 0:00:02]} 55. Kc7 {[%clk 0:00:30]}  Kf5 {[%clk 0:00:03]} 56. Kb7 {[%clk 0:00:30]}  Ke5 {[%clk 0:00:03]} 57. Bf3 {[%clk 0:00:31]}  Kf4 {[%clk 0:00:04]} 58. Bh5 {[%clk 0:00:31]}  Ke3 {[%clk 0:00:04]} 59. Kxa7 {[%clk 0:00:29]}  b5 {[%clk 0:00:04]} 60. Kb6 {[%clk 0:00:29]}  b4 {[%clk 0:00:04]} 61. Kxc5 {[%clk 0:00:30]}  bxc3 {[%clk 0:00:01]} 62. bxc3 {[%clk 0:00:20]}  Kd2 {[%clk 0:00:01]} 63. Kd4 {[%clk 0:00:21]}  Kc2 {[%clk 0:00:01]} 64. a4 {[%clk 0:00:19]}  Kb3 {[%clk 0:00:01]} 65. Be8 {[%clk 0:00:18]}  Ka3 {[%clk 0:00:02]} 66. Bb5 {[%clk 0:00:19]}  Bg2 {[%clk 0:00:02]} 67. a5 {[%clk 0:00:19]}  Kb3 {[%clk 0:00:02]} 68. a6 {[%clk 0:00:20]}  Ka3 {[%clk 0:00:01]} 69. a7 {[%clk 0:00:20]}  Kb3 {[%clk 0:00:02]} 70. Kc5 {[%clk 0:00:21]}  Kxc3 {[%clk 0:00:02]} 71. Bc6 {[%clk 0:00:21]} 1-0


[Site "https://www.chess.com"]